[Event "Titled Tuesday Blitz March 15 Late 2022"]
[White "Aldokhin, Ivan"]
[Black "Abdrlauf, Elham"]
[WhiteFideId "24115720"]
[BlackFideId "1533533"]
[WhiteElo "2231"]
[BlackElo "2334"]
[Result "0-1"]
[Round "05"]
[TimeControl "180+1"]
[Date "2022.03.15"]
[WhiteClock "0:00:04"]
[BlackClock "0:00:40"]

1. d4 {[%clk 0:03:00]}  Nf6 {[%clk 0:02:59]} 2. c4 {[%clk 0:03:01]}  e6 {[%clk 0:02:57]} 3. Nc3 {[%clk 0:03:01]}  d5 {[%clk 0:02:57]} 4. cxd5 {[%clk 0:03:00]}  exd5 {[%clk 0:02:58]} 5. Bg5 {[%clk 0:03:01]}  c6 {[%clk 0:02:56]} 6. Qc2 {[%clk 0:02:54]}  Bd6 {[%clk 0:02:54]} 7. e3 {[%clk 0:02:54]}  O-O {[%clk 0:02:50]} 8. Bd3 {[%clk 0:02:54]}  h6 {[%clk 0:02:49]} 9. Bh4 {[%clk 0:02:54]}  Re8 {[%clk 0:02:48]} 10. Nge2 {[%clk 0:02:52]}  a5 {[%clk 0:02:43]} 11. h3 {[%clk 0:02:48]}  Na6 {[%clk 0:02:43]} 12. a3 {[%clk 0:02:47]}  Nc7 {[%clk 0:02:43]} 13. g4 {[%clk 0:02:32]}  Ne6 {[%clk 0:02:40]} 14. f4 {[%clk 0:02:06]}  Be7 {[%clk 0:02:35]} 15. Bxf6 {[%clk 0:01:58]}  Bxf6 {[%clk 0:02:36]} 16. O-O-O {[%clk 0:01:52]}  Nf8 {[%clk 0:02:29]} 17. e4 {[%clk 0:01:48]}  dxe4 {[%clk 0:02:28]} 18. Nxe4 {[%clk 0:01:42]}  Be6 {[%clk 0:02:19]} 19. Nxf6+ {[%clk 0:01:26]}  Qxf6 {[%clk 0:02:15]} 20. Kb1 {[%clk 0:01:24]}  Bd5 {[%clk 0:02:04]} 21. g5 {[%clk 0:01:22]}  Qe6 {[%clk 0:01:57]} 22. gxh6 {[%clk 0:00:58]}  Bb3 {[%clk 0:01:33]} 23. Qc3 {[%clk 0:00:42]}  Bxd1 {[%clk 0:01:32]} 24. hxg7 {[%clk 0:00:28]}  Bxe2 {[%clk 0:01:32]} 25. gxf8=Q+ {[%clk 0:00:25]}  Kxf8 {[%clk 0:01:26]} 26. Bc2 {[%clk 0:00:17]}  Qc4 {[%clk 0:01:22]} 27. Qg3 {[%clk 0:00:13]}  Ke7 {[%clk 0:01:20]} 28. Rc1 {[%clk 0:00:11]}  Qxd4 {[%clk 0:01:12]} 29. f5 {[%clk 0:00:10]}  Kf6 {[%clk 0:00:45]} 30. Qc7 {[%clk 0:00:04]}  Bd3 {[%clk 0:00:40]} 0-1


[Site "https://www.chess.com"]

[Event "Titled Tuesday Blitz March 15 Late 2022"]
[White "Ambartsumova, Karina"]
[Black "Przybylski, Wojciech"]
[WhiteFideId "4166299"]
[BlackFideId "1117599"]
[WhiteElo "2262"]
[BlackElo "2133"]
[Result "0-1"]
[Round "05"]
[TimeControl "180+1"]
[Date "2022.03.16"]
[WhiteClock "0:00:04"]
[BlackClock "0:00:06"]

1. d4 {[%clk 0:02:57]}  Nf6 {[%clk 0:02:45]} 2. Nf3 {[%clk 0:02:56]}  e6 {[%clk 0:02:35]} 3. c4 {[%clk 0:02:56]}  b6 {[%clk 0:02:17]} 4. g3 {[%clk 0:02:56]}  Ba6 {[%clk 0:02:17]} 5. Qc2 {[%clk 0:02:55]}  Bb7 {[%clk 0:02:16]} 6. Bg2 {[%clk 0:02:55]}  Be7 {[%clk 0:02:17]} 7. O-O {[%clk 0:02:55]}  O-O {[%clk 0:02:17]} 8. Nc3 {[%clk 0:02:55]}  d5 {[%clk 0:02:17]} 9. Ne5 {[%clk 0:02:49]}  c6 {[%clk 0:02:15]} 10. Qa4 {[%clk 0:02:47]}  Nfd7 {[%clk 0:02:10]} 11. cxd5 {[%clk 0:02:30]}  exd5 {[%clk 0:02:07]} 12. f4 {[%clk 0:02:22]}  b5 {[%clk 0:02:03]} 13. Qc2 {[%clk 0:02:20]}  Nf6 {[%clk 0:02:01]} 14. Be3 {[%clk 0:02:14]}  Nbd7 {[%clk 0:02:00]} 15. Bf2 {[%clk 0:02:07]}  Nb6 {[%clk 0:01:58]} 16. g4 {[%clk 0:01:54]}  Rc8 {[%clk 0:01:35]} 17. Rad1 {[%clk 0:01:49]}  Nc4 {[%clk 0:01:32]} 18. h3 {[%clk 0:01:39]}  Nd7 {[%clk 0:01:15]} 19. e4 {[%clk 0:01:37]}  f6 {[%clk 0:01:11]} 20. Nxd7 {[%clk 0:01:25]}  Qxd7 {[%clk 0:01:11]} 21. e5 {[%clk 0:01:25]}  fxe5 {[%clk 0:01:05]} 22. fxe5 {[%clk 0:01:23]}  Bg5 {[%clk 0:00:57]} 23. Qe2 {[%clk 0:01:23]}  Qe7 {[%clk 0:00:42]} 24. b3 {[%clk 0:01:21]}  Nb6 {[%clk 0:00:36]} 25. Rd3 {[%clk 0:01:17]}  Rf7 {[%clk 0:00:34]} 26. Bg3 {[%clk 0:01:11]}  Rcf8 {[%clk 0:00:33]} 27. Rxf7 {[%clk 0:01:01]}  Rxf7 {[%clk 0:00:33]} 28. Rf3 {[%clk 0:00:50]}  Bc8 {[%clk 0:00:32]} 29. Kh2 {[%clk 0:00:44]}  Be6 {[%clk 0:00:26]} 30. Nd1 {[%clk 0:00:42]}  Nd7 {[%clk 0:00:20]} 31. Ne3 {[%clk 0:00:41]}  g6 {[%clk 0:00:21]} 32. Nd1 {[%clk 0:00:29]}  Kg7 {[%clk 0:00:20]} 33. Qc2 {[%clk 0:00:28]}  Nb8 {[%clk 0:00:15]} 34. Nf2 {[%clk 0:00:27]}  Rxf3 {[%clk 0:00:12]} 35. Bxf3 {[%clk 0:00:27]}  Qf7 {[%clk 0:00:08]} 36. Kg2 {[%clk 0:00:27]}  Qe8 {[%clk 0:00:06]} 37. Nd3 {[%clk 0:00:27]}  Na6 {[%clk 0:00:06]} 38. Nc5 {[%clk 0:00:21]}  Nxc5 {[%clk 0:00:05]} 39. Qxc5 {[%clk 0:00:22]}  Qd7 {[%clk 0:00:05]} 40. a4 {[%clk 0:00:16]}  Be7 {[%clk 0:00:05]} 41. Qc3 {[%clk 0:00:15]}  bxa4 {[%clk 0:00:05]} 42. bxa4 {[%clk 0:00:16]}  c5 {[%clk 0:00:03]} 43. dxc5 {[%clk 0:00:15]}  Qxa4 {[%clk 0:00:03]} 44. c6 {[%clk 0:00:15]}  Qc4 {[%clk 0:00:04]} 45. Qxc4 {[%clk 0:00:13]}  dxc4 {[%clk 0:00:04]} 46. c7 {[%clk 0:00:12]}  a5 {[%clk 0:00:04]} 47. Be1 {[%clk 0:00:09]}  Bb4 {[%clk 0:00:02]} 48. Bf2 {[%clk 0:00:04]}  Bc8 {[%clk 0:00:02]} 49. Bc6 {[%clk 0:00:03]}  c3 {[%clk 0:00:02]} 50. Be3 {[%clk 0:00:02]}  c2 {[%clk 0:00:01]} 51. Bc1 {[%clk 0:00:03]}  Kf7 {[%clk 0:00:02]} 52. Kf3 {[%clk 0:00:03]}  Ke6 {[%clk 0:00:02]} 53. Ke4 {[%clk 0:00:04]}  Bc3 {[%clk 0:00:01]} 54. Kd3 {[%clk 0:00:04]}  Bxe5 {[%clk 0:00:01]} 55. Kxc2 {[%clk 0:00:04]}  Bxc7 {[%clk 0:00:02]} 56. Bf3 {[%clk 0:00:05]}  Ke5 {[%clk 0:00:02]} 57. Bb2+ {[%clk 0:00:04]}  Kf4 {[%clk 0:00:02]} 58. Bd5 {[%clk 0:00:04]}  Bd7 {[%clk 0:00:02]} 59. Bg8 {[%clk 0:00:05]}  h6 {[%clk 0:00:02]} 60. Bf7 {[%clk 0:00:04]}  g5 {[%clk 0:00:03]} 61. Bg7 {[%clk 0:00:04]}  Kg3 {[%clk 0:00:03]} 62. Bxh6 {[%clk 0:00:05]}  Kh4 {[%clk 0:00:03]} 63. Bh5 {[%clk 0:00:04]}  Bc6 {[%clk 0:00:03]} 64. Bg7 {[%clk 0:00:04]}  Bg2 {[%clk 0:00:03]} 65. Bf7 {[%clk 0:00:04]}  Bc6 {[%clk 0:00:03]} 66. Be6 {[%clk 0:00:04]}  a4 {[%clk 0:00:03]} 67. Bf6 {[%clk 0:00:04]}  Bd6 {[%clk 0:00:04]} 68. Kb2 {[%clk 0:00:04]}  a3+ {[%clk 0:00:04]} 69. Ka2 {[%clk 0:00:05]}  Bg2 {[%clk 0:00:04]} 70. Bf5 {[%clk 0:00:05]}  Bxh3 {[%clk 0:00:04]} 71. Bd3 {[%clk 0:00:05]}  Bxg4 {[%clk 0:00:04]} 72. Bf1 {[%clk 0:00:05]}  Bf3 {[%clk 0:00:04]} 73. Bd3 {[%clk 0:00:04]}  Bd5+ {[%clk 0:00:04]} 74. Kb1 {[%clk 0:00:04]}  Kg4 {[%clk 0:00:04]} 75. Be2+ {[%clk 0:00:04]}  Kf5 {[%clk 0:00:05]} 76. Bd8 {[%clk 0:00:04]}  g4 {[%clk 0:00:05]} 77. Bxg4+ {[%clk 0:00:03]}  Kxg4 {[%clk 0:00:05]} 78. Ba5 {[%clk 0:00:03]}  Kf5 {[%clk 0:00:05]} 79. Bc3 {[%clk 0:00:02]}  Ke4 {[%clk 0:00:05]} 80. Ka1 {[%clk 0:00:02]}  Kd3 {[%clk 0:00:05]} 81. Bg7 {[%clk 0:00:02]}  Bc4 {[%clk 0:00:04]} 82. Bh8 {[%clk 0:00:02]}  Bb4 {[%clk 0:00:03]} 83. Bf6 {[%clk 0:00:03]}  Bc5 {[%clk 0:00:04]} 84. Bg7 {[%clk 0:00:01]}  Bd6 {[%clk 0:00:03]} 85. Bf6 {[%clk 0:00:02]}  Ke4 {[%clk 0:00:04]} 86. Bg7 {[%clk 0:00:02]}  Kd5 {[%clk 0:00:04]} 87. Bc3 {[%clk 0:00:03]}  Kc5 {[%clk 0:00:04]} 88. Bh8 {[%clk 0:00:03]}  Kb5 {[%clk 0:00:05]} 89. Bf6 {[%clk 0:00:04]}  Ka4 {[%clk 0:00:05]} 90. Bg7 {[%clk 0:00:04]}  Kb3 {[%clk 0:00:06]} 91. Bh8 {[%clk 0:00:05]}  Bf4 {[%clk 0:00:06]} 92. Bd4 {[%clk 0:00:05]}  Bc1 {[%clk 0:00:06]} 93. Kb1 {[%clk 0:00:05]}  Bd2 {[%clk 0:00:06]} 94. Ka1 {[%clk 0:00:05]}  Bd5 {[%clk 0:00:05]} 95. Kb1 {[%clk 0:00:04]}  Be4+ {[%clk 0:00:05]} 96. Ka1 {[%clk 0:00:05]}  Bc1 {[%clk 0:00:05]} 97. Bc3 {[%clk 0:00:04]}  Bb2+ {[%clk 0:00:05]} 98. Bxb2 {[%clk 0:00:04]}  axb2# {[%clk 0:00:06]} 0-1


[Site "https://www.chess.com"]

[Event "Titled Tuesday Blitz March 15 Late 2022"]
[White "Ansh M Shah"]
[Black "Hartikainen, Jarmo"]
[WhiteFideId "25033379"]
[BlackFideId "503134"]
[WhiteElo "1819"]
[BlackElo "2095"]
[Result "1-0"]
[Round "05"]
[TimeControl "180+1"]
[Date "2022.03.16"]
[WhiteClock "0:02:25"]
[BlackClock "0:00:40"]

1. d4 {[%clk 0:02:59]}  Nf6 {[%clk 0:01:33]} 2. c4 {[%clk 0:02:58]}  g6 {[%clk 0:01:33]} 3. h4 {[%clk 0:02:58]}  d5 {[%clk 0:01:34]} 4. Nc3 {[%clk 0:02:47]}  Bg7 {[%clk 0:01:33]} 5. h5 {[%clk 0:02:48]}  Nxh5 {[%clk 0:01:27]} 6. cxd5 {[%clk 0:02:47]}  c6 {[%clk 0:01:27]} 7. e4 {[%clk 0:02:48]}  cxd5 {[%clk 0:01:26]} 8. e5 {[%clk 0:02:49]}  f5 {[%clk 0:01:08]} 9. Be2 {[%clk 0:02:45]}  e6 {[%clk 0:00:42]} 10. Bxh5 {[%clk 0:02:43]}  gxh5 {[%clk 0:00:43]} 11. Qxh5+ {[%clk 0:02:42]}  Kd7 {[%clk 0:00:43]} 12. Bg5 {[%clk 0:02:34]}  Qb6 {[%clk 0:00:41]} 13. Qf7+ {[%clk 0:02:30]}  Kc6 {[%clk 0:00:41]} 14. Qxg7 {[%clk 0:02:24]}  Qxb2 {[%clk 0:00:40]} 15. Rc1 {[%clk 0:02:25]} 1-0


[Site "https://www.chess.com"]

[Event "Titled Tuesday Blitz March 15 Late 2022"]
[White "Ardila, Oscar Humberto"]
[Black "Zotova, Anastasia"]
[WhiteFideId "4404742"]
[BlackFideId "34124907"]
[WhiteElo "1966"]
[BlackElo "1860"]
[Result "0-1"]
[Round "05"]
[TimeControl "180+1"]
[Date "2022.03.16"]
[WhiteClock "0:00:06"]
[BlackClock "0:00:47"]

1. d4 {[%clk 0:02:50]}  d5 {[%clk 0:02:58]} 2. c4 {[%clk 0:02:50]}  dxc4 {[%clk 0:02:57]} 3. Nc3 {[%clk 0:02:47]}  Nf6 {[%clk 0:02:55]} 4. Nf3 {[%clk 0:02:45]}  e6 {[%clk 0:02:54]} 5. Bg5 {[%clk 0:02:44]}  Be7 {[%clk 0:02:52]} 6. e3 {[%clk 0:02:43]}  O-O {[%clk 0:02:51]} 7. Bxc4 {[%clk 0:02:43]}  c5 {[%clk 0:02:50]} 8. dxc5 {[%clk 0:02:39]}  Qa5 {[%clk 0:02:47]} 9. O-O {[%clk 0:02:34]}  Qxc5 {[%clk 0:02:47]} 10. Qe2 {[%clk 0:02:33]}  Nc6 {[%clk 0:02:42]} 11. Rad1 {[%clk 0:02:31]}  Ne5 {[%clk 0:02:37]} 12. Nxe5 {[%clk 0:02:29]}  Qxe5 {[%clk 0:02:37]} 13. Bf4 {[%clk 0:02:29]}  Qa5 {[%clk 0:02:37]} 14. Qf3 {[%clk 0:02:24]}  Qb4 {[%clk 0:02:29]} 15. Bb3 {[%clk 0:02:21]}  Bd7 {[%clk 0:02:28]} 16. Rd4 {[%clk 0:02:19]}  Qb6 {[%clk 0:02:24]} 17. Rfd1 {[%clk 0:02:14]}  Bc6 {[%clk 0:02:24]} 18. Qe2 {[%clk 0:02:11]}  Rfd8 {[%clk 0:02:21]} 19. Be5 {[%clk 0:02:09]}  Rxd4 {[%clk 0:02:10]} 20. Bxd4 {[%clk 0:02:09]}  Qc7 {[%clk 0:02:10]} 21. Nb5 {[%clk 0:02:00]}  Qa5 {[%clk 0:02:05]} 22. Nc3 {[%clk 0:01:54]}  Rd8 {[%clk 0:02:04]} 23. h3 {[%clk 0:01:42]}  Qg5 {[%clk 0:02:01]} 24. f4 {[%clk 0:01:41]}  Qa5 {[%clk 0:01:51]} 25. g4 {[%clk 0:01:29]}  h6 {[%clk 0:01:37]} 26. Kh2 {[%clk 0:01:25]}  Ne4 {[%clk 0:01:34]} 27. Bc2 {[%clk 0:01:04]}  Nxc3 {[%clk 0:01:29]} 28. Bxc3 {[%clk 0:01:04]}  Qc5 {[%clk 0:01:19]} 29. Rxd8+ {[%clk 0:01:03]}  Bxd8 {[%clk 0:01:19]} 30. Qd3 {[%clk 0:01:03]}  Bb6 {[%clk 0:01:06]} 31. Qh7+ {[%clk 0:00:56]}  Kf8 {[%clk 0:01:07]} 32. Qh8+ {[%clk 0:00:56]}  Ke7 {[%clk 0:01:07]} 33. Qxg7 {[%clk 0:00:52]}  Qxe3 {[%clk 0:01:05]} 34. Bf6+ {[%clk 0:00:50]}  Kd6 {[%clk 0:00:58]} 35. Qf8+ {[%clk 0:00:48]}  Kd5 {[%clk 0:00:57]} 36. Bb3+ {[%clk 0:00:34]}  Ke4 {[%clk 0:00:55]} 37. Qb4+ {[%clk 0:00:34]}  Kf3 {[%clk 0:00:49]} 38. Bd1+ {[%clk 0:00:31]}  Kf2 {[%clk 0:00:49]} 39. Qc3 {[%clk 0:00:06]}  Qxf4+ {[%clk 0:00:47]} 0-1


[Site "https://www.chess.com"]

[Event "Titled Tuesday Blitz March 15 Late 2022"]
[White "Beerdsen, Thomas"]
[Black "Olsen, Filip Boe"]
[WhiteFideId "1030108"]
[BlackFideId "1440640"]
[WhiteElo "2585"]
[BlackElo "2188"]
[Result "1/2-1/2"]
[Round "05"]
[TimeControl "180+1"]
[Date "2022.03.16"]
[WhiteClock "0:00:04"]
[BlackClock "0:00:10"]

1. e4 {[%clk 0:02:51]}  c6 {[%clk 0:02:57]} 2. d4 {[%clk 0:02:45]}  d5 {[%clk 0:02:57]} 3. f3 {[%clk 0:02:46]}  e6 {[%clk 0:02:54]} 4. Nc3 {[%clk 0:02:39]}  Bb4 {[%clk 0:02:53]} 5. Bd3 {[%clk 0:02:38]}  Nf6 {[%clk 0:02:44]} 6. e5 {[%clk 0:02:33]}  Nfd7 {[%clk 0:02:43]} 7. f4 {[%clk 0:02:31]}  c5 {[%clk 0:02:43]} 8. a3 {[%clk 0:02:29]}  Ba5 {[%clk 0:02:42]} 9. Qg4 {[%clk 0:02:22]}  g6 {[%clk 0:02:37]} 10. Nf3 {[%clk 0:02:15]}  Nc6 {[%clk 0:02:33]} 11. Be3 {[%clk 0:02:13]}  cxd4 {[%clk 0:02:25]} 12. Nxd4 {[%clk 0:02:14]}  Nxd4 {[%clk 0:02:25]} 13. Bxd4 {[%clk 0:02:14]}  Bb6 {[%clk 0:02:26]} 14. Bxb6 {[%clk 0:02:07]}  Qxb6 {[%clk 0:02:21]} 15. O-O-O {[%clk 0:02:06]}  a6 {[%clk 0:02:19]} 16. h4 {[%clk 0:02:04]}  h5 {[%clk 0:02:15]} 17. Qg5 {[%clk 0:02:03]}  Qd8 {[%clk 0:02:12]} 18. Qg3 {[%clk 0:01:57]}  Nc5 {[%clk 0:02:07]} 19. Kb1 {[%clk 0:01:52]}  Bd7 {[%clk 0:02:05]} 20. Qe3 {[%clk 0:01:46]}  Qb6 {[%clk 0:01:57]} 21. Ne2 {[%clk 0:01:38]}  O-O-O {[%clk 0:01:52]} 22. Nd4 {[%clk 0:01:38]}  Na4 {[%clk 0:01:49]} 23. b3 {[%clk 0:01:32]}  Nc3+ {[%clk 0:01:48]} 24. Kb2 {[%clk 0:01:32]}  Nxd1+ {[%clk 0:01:48]} 25. Rxd1 {[%clk 0:01:33]}  Kb8 {[%clk 0:01:47]} 26. Qg1 {[%clk 0:01:13]}  Rc8 {[%clk 0:01:46]} 27. Nf3 {[%clk 0:01:14]}  Qc7 {[%clk 0:01:33]} 28. Qd4 {[%clk 0:01:14]}  Bb5 {[%clk 0:01:33]} 29. Ng5 {[%clk 0:01:09]}  Bxd3 {[%clk 0:01:29]} 30. Qxd3 {[%clk 0:01:10]}  Rhf8 {[%clk 0:01:27]} 31. Rd2 {[%clk 0:01:04]}  Qc6 {[%clk 0:01:28]} 32. Qd4 {[%clk 0:00:59]}  Rc7 {[%clk 0:01:26]} 33. Qd3 {[%clk 0:00:50]}  Rfc8 {[%clk 0:01:25]} 34. Qd4 {[%clk 0:00:36]}  Qb5 {[%clk 0:01:20]} 35. Qf2 {[%clk 0:00:29]}  Qa5 {[%clk 0:01:08]} 36. Qd4 {[%clk 0:00:27]}  Ka8 {[%clk 0:01:08]} 37. Kb1 {[%clk 0:00:18]}  Qxa3 {[%clk 0:01:05]} 38. Qd3 {[%clk 0:00:17]}  Qc5 {[%clk 0:01:03]} 39. Kb2 {[%clk 0:00:16]}  Kb8 {[%clk 0:01:01]} 40. Kb1 {[%clk 0:00:15]}  a5 {[%clk 0:01:01]} 41. Kb2 {[%clk 0:00:12]}  a4 {[%clk 0:00:59]} 42. bxa4 {[%clk 0:00:13]}  Qb4+ {[%clk 0:00:59]} 43. Kc1 {[%clk 0:00:14]}  Qxa4 {[%clk 0:00:56]} 44. Kd1 {[%clk 0:00:09]}  Qxf4 {[%clk 0:00:48]} 45. Nf3 {[%clk 0:00:07]}  Rc3 {[%clk 0:00:46]} 46. Qb5 {[%clk 0:00:08]}  Qe4 {[%clk 0:00:30]} 47. Re2 {[%clk 0:00:06]}  Qc4 {[%clk 0:00:28]} 48. Qb2 {[%clk 0:00:07]}  Rc5 {[%clk 0:00:23]} 49. Nd2 {[%clk 0:00:06]}  Qd4 {[%clk 0:00:22]} 50. Ke1 {[%clk 0:00:02]}  Qg1+ {[%clk 0:00:21]} 51. Nf1 {[%clk 0:00:02]}  Qd4 {[%clk 0:00:19]} 52. Qb6 {[%clk 0:00:03]}  Qxh4+ {[%clk 0:00:19]} 53. g3 {[%clk 0:00:03]}  Qa4 {[%clk 0:00:17]} 54. Qd8+ {[%clk 0:00:03]}  Ka7 {[%clk 0:00:18]} 55. Qd6 {[%clk 0:00:03]}  Qa1+ {[%clk 0:00:18]} 56. Kf2 {[%clk 0:00:04]}  Rxc2 {[%clk 0:00:18]} 57. Nd2 {[%clk 0:00:04]}  Qa2 {[%clk 0:00:17]} 58. Kf3 {[%clk 0:00:02]}  Rc6 {[%clk 0:00:18]} 59. Qb4 {[%clk 0:00:02]}  R2c3+ {[%clk 0:00:18]} 60. Kf4 {[%clk 0:00:03]}  R3c4+ {[%clk 0:00:17]} 61. Nxc4 {[%clk 0:00:03]}  Rxc4+ {[%clk 0:00:18]} 62. Kg5 {[%clk 0:00:03]}  Rxb4 {[%clk 0:00:18]} 63. Rxa2+ {[%clk 0:00:03]}  Kb6 {[%clk 0:00:18]} 64. Kf6 {[%clk 0:00:04]}  Rb3 {[%clk 0:00:17]} 65. Kxf7 {[%clk 0:00:04]}  Rxg3 {[%clk 0:00:17]} 66. Kxe6 {[%clk 0:00:05]}  h4 {[%clk 0:00:18]} 67. Kd7 {[%clk 0:00:05]}  h3 {[%clk 0:00:18]} 68. Rh2 {[%clk 0:00:05]}  g5 {[%clk 0:00:18]} 69. e6 {[%clk 0:00:06]}  g4 {[%clk 0:00:19]} 70. e7 {[%clk 0:00:07]}  Re3 {[%clk 0:00:19]} 71. e8=Q {[%clk 0:00:07]}  Rxe8 {[%clk 0:00:20]} 72. Kxe8 {[%clk 0:00:08]}  d4 {[%clk 0:00:20]} 73. Rxh3 {[%clk 0:00:08]}  Kc5 {[%clk 0:00:21]} 74. Rh4 {[%clk 0:00:07]}  d3 {[%clk 0:00:18]} 75. Rxg4 {[%clk 0:00:08]}  d2 {[%clk 0:00:19]} 76. Rg1 {[%clk 0:00:04]}  Kd4 {[%clk 0:00:19]} 77. Kd7 {[%clk 0:00:04]}  Kc3 {[%clk 0:00:18]} 78. Kd6 {[%clk 0:00:04]}  b5 {[%clk 0:00:17]} 79. Kc5 {[%clk 0:00:05]}  b4 {[%clk 0:00:17]} 80. Rg3+ {[%clk 0:00:05]}  Kc2 {[%clk 0:00:18]} 81. Kxb4 {[%clk 0:00:04]}  d1=Q {[%clk 0:00:17]} 82. Rc3+ {[%clk 0:00:05]}  Kb2 {[%clk 0:00:18]} 83. Rc4 {[%clk 0:00:05]}  Qd6+ {[%clk 0:00:18]} 84. Kb5 {[%clk 0:00:05]}  Kb3 {[%clk 0:00:19]} 85. Rc5 {[%clk 0:00:04]}  Qd7+ {[%clk 0:00:19]} 86. Rc6 {[%clk 0:00:04]}  Qb7+ {[%clk 0:00:19]} 87. Rb6 {[%clk 0:00:04]}  Qd5+ {[%clk 0:00:19]} 88. Ka6+ {[%clk 0:00:04]}  Ka4 {[%clk 0:00:19]} 89. Ka7 {[%clk 0:00:05]}  Ka5 {[%clk 0:00:16]} 90. Ra6+ {[%clk 0:00:04]}  Kb5 {[%clk 0:00:17]} 91. Rb6+ {[%clk 0:00:05]}  Kc5 {[%clk 0:00:17]} 92. Rb7 {[%clk 0:00:04]}  Qd6 {[%clk 0:00:16]} 93. Ka8 {[%clk 0:00:04]}  Kc6 {[%clk 0:00:15]} 94. Rb6+ {[%clk 0:00:04]}  Kxb6 {[%clk 0:00:10]} 1/2-1/2


[Site "https://www.chess.com"]

[Event "Titled Tuesday Blitz March 15 Late 2022"]
[White "Bilych, Olexiy"]
[Black "Hirneise, Jens"]
[WhiteFideId "14156504"]
[BlackFideId "24614734"]
[WhiteElo "2176"]
[BlackElo "2359"]
[Result "1-0"]
[Round "05"]
[TimeControl "180+1"]
[Date "2022.03.16"]
[WhiteClock "0:01:22"]
[BlackClock "0:01:09"]

1. d4 {[%clk 0:03:00]}  Nf6 {[%clk 0:02:59]} 2. c4 {[%clk 0:03:01]}  d6 {[%clk 0:02:55]} 3. Nf3 {[%clk 0:03:00]}  Nbd7 {[%clk 0:02:54]} 4. g3 {[%clk 0:02:56]}  e5 {[%clk 0:02:55]} 5. Bg2 {[%clk 0:02:56]}  Be7 {[%clk 0:02:55]} 6. O-O {[%clk 0:02:56]}  O-O {[%clk 0:02:55]} 7. Nc3 {[%clk 0:02:56]}  c6 {[%clk 0:02:55]} 8. e4 {[%clk 0:02:56]}  a5 {[%clk 0:02:48]} 9. h3 {[%clk 0:02:46]}  Re8 {[%clk 0:02:44]} 10. Be3 {[%clk 0:02:46]}  Bf8 {[%clk 0:02:42]} 11. d5 {[%clk 0:02:42]}  c5 {[%clk 0:02:41]} 12. Ne1 {[%clk 0:02:29]}  g6 {[%clk 0:02:42]} 13. Nd3 {[%clk 0:02:29]}  Bg7 {[%clk 0:02:42]} 14. a3 {[%clk 0:02:29]}  Kh8 {[%clk 0:02:34]} 15. Nb5 {[%clk 0:02:29]}  Ra6 {[%clk 0:02:32]} 16. b4 {[%clk 0:02:24]}  cxb4 {[%clk 0:02:14]} 17. axb4 {[%clk 0:02:25]}  Bf8 {[%clk 0:02:14]} 18. c5 {[%clk 0:02:08]}  axb4 {[%clk 0:02:11]} 19. cxd6 {[%clk 0:02:04]}  Bg7 {[%clk 0:01:49]} 20. Nxb4 {[%clk 0:01:55]}  Rxa1 {[%clk 0:01:48]} 21. Qxa1 {[%clk 0:01:56]}  Rg8 {[%clk 0:01:43]} 22. Rc1 {[%clk 0:01:54]}  Nb6 {[%clk 0:01:36]} 23. Qa7 {[%clk 0:01:47]}  Nbd7 {[%clk 0:01:22]} 24. Qa8 {[%clk 0:01:29]}  Re8 {[%clk 0:01:09]} 25. Na7 {[%clk 0:01:23]}  Nf8 {[%clk 0:01:09]} 26. Rxc8 {[%clk 0:01:22]} 1-0


[Site "https://www.chess.com"]

[Event "Titled Tuesday Blitz March 15 Late 2022"]
[White "Chiku-Ratte, Olivier-Kenta"]
[Black "Martinez Alcantara, Jose Eduardo"]
[WhiteFideId "2614782"]
[BlackFideId "3805662"]
[WhiteElo "2324"]
[BlackElo "2690"]
[Result "0-1"]
[Round "05"]
[TimeControl "180+1"]
[Date "2022.03.15"]
[WhiteClock "0:00:03"]
[BlackClock "0:00:07"]

1. Nf3 {[%clk 0:03:00]}  c5 {[%clk 0:02:56]} 2. c4 {[%clk 0:02:59]}  Nc6 {[%clk 0:02:54]} 3. b3 {[%clk 0:02:59]}  e5 {[%clk 0:02:54]} 4. d3 {[%clk 0:02:59]}  g6 {[%clk 0:02:54]} 5. Bb2 {[%clk 0:03:00]}  Bg7 {[%clk 0:02:55]} 6. Nbd2 {[%clk 0:02:55]}  d6 {[%clk 0:02:54]} 7. g3 {[%clk 0:02:54]}  Nge7 {[%clk 0:02:54]} 8. Bg2 {[%clk 0:02:50]}  O-O {[%clk 0:02:54]} 9. Rb1 {[%clk 0:02:45]}  h6 {[%clk 0:02:54]} 10. O-O {[%clk 0:02:45]}  f5 {[%clk 0:02:54]} 11. e3 {[%clk 0:02:44]}  g5 {[%clk 0:02:39]} 12. Ne1 {[%clk 0:02:40]}  Be6 {[%clk 0:02:37]} 13. f4 {[%clk 0:02:36]}  Qd7 {[%clk 0:02:35]} 14. Ndf3 {[%clk 0:02:30]}  g4 {[%clk 0:02:31]} 15. Nd2 {[%clk 0:02:28]}  Rad8 {[%clk 0:02:26]} 16. e4 {[%clk 0:02:26]}  Nd4 {[%clk 0:02:26]} 17. Nc2 {[%clk 0:02:23]}  h5 {[%clk 0:02:24]} 18. Ne3 {[%clk 0:02:22]}  exf4 {[%clk 0:02:23]} 19. gxf4 {[%clk 0:02:22]}  Rde8 {[%clk 0:02:21]} 20. Nd5 {[%clk 0:02:20]}  Ng6 {[%clk 0:02:09]} 21. Kh1 {[%clk 0:02:08]}  Kh7 {[%clk 0:02:05]} 22. Qe1 {[%clk 0:02:02]}  b5 {[%clk 0:01:50]} 23. Qf2 {[%clk 0:01:57]}  a5 {[%clk 0:01:50]} 24. Bc3 {[%clk 0:01:49]}  b4 {[%clk 0:01:50]} 25. Bb2 {[%clk 0:01:49]}  a4 {[%clk 0:01:43]} 26. Nb6 {[%clk 0:01:49]}  Qd8 {[%clk 0:01:39]} 27. Nxa4 {[%clk 0:01:47]}  Bh6 {[%clk 0:01:32]} 28. Bxd4 {[%clk 0:01:45]}  cxd4 {[%clk 0:01:33]} 29. exf5 {[%clk 0:01:37]}  Bxf5 {[%clk 0:01:23]} 30. Ne4 {[%clk 0:01:28]}  Bxf4 {[%clk 0:01:16]} 31. Qxd4 {[%clk 0:01:26]}  Be5 {[%clk 0:00:52]} 32. Qa7+ {[%clk 0:01:19]}  Kh8 {[%clk 0:00:51]} 33. Qe3 {[%clk 0:01:07]}  Qh4 {[%clk 0:00:42]} 34. Ng3 {[%clk 0:00:56]}  Kh7 {[%clk 0:00:39]} 35. Be4 {[%clk 0:00:45]}  Bxe4+ {[%clk 0:00:26]} 36. dxe4 {[%clk 0:00:41]}  Bf4 {[%clk 0:00:26]} 37. Qa7+ {[%clk 0:00:37]}  Re7 {[%clk 0:00:24]} 38. Qg1 {[%clk 0:00:32]}  Qg5 {[%clk 0:00:16]} 39. Rbe1 {[%clk 0:00:25]}  Ref7 {[%clk 0:00:17]} 40. Nf5 {[%clk 0:00:23]}  Be5 {[%clk 0:00:16]} 41. Nb6 {[%clk 0:00:21]}  Nh4 {[%clk 0:00:17]} 42. Nd5 {[%clk 0:00:16]}  Nxf5 {[%clk 0:00:16]} 43. exf5 {[%clk 0:00:17]}  Rxf5 {[%clk 0:00:17]} 44. Rxf5 {[%clk 0:00:17]}  Qxf5 {[%clk 0:00:16]} 45. Qg2 {[%clk 0:00:17]}  Qf2 {[%clk 0:00:11]} 46. Qe4+ {[%clk 0:00:15]}  Kg7 {[%clk 0:00:09]} 47. Qe2 {[%clk 0:00:13]}  Rf3 {[%clk 0:00:06]} 48. Ne3 {[%clk 0:00:08]}  Qh4 {[%clk 0:00:04]} 49. Qxf3 {[%clk 0:00:02]}  Qxe1+ {[%clk 0:00:04]} 50. Qf1 {[%clk 0:00:01]}  Qxe3 {[%clk 0:00:04]} 51. c5 {[%clk 0:00:01]}  Qxc5 {[%clk 0:00:04]} 52. Qg2 {[%clk 0:00:02]}  Qc1+ {[%clk 0:00:05]} 53. Qg1 {[%clk 0:00:03]}  Qxg1+ {[%clk 0:00:05]} 54. Kxg1 {[%clk 0:00:03]}  Kf6 {[%clk 0:00:06]} 55. Kg2 {[%clk 0:00:03]}  Kf5 {[%clk 0:00:07]} 0-1


[Site "https://www.chess.com"]